bitfinex-derivatives/quotes_ETHF0:USTF0_20250123
["timestamp","ask_amount","ask_price","bid_price","bid_amount"]
[1737673791394,3.9393,3320.9,3320.8,0.60211]
[1737673791585,3.2078,3320.9,3320.8,0.60211]
[1737673791792,3.2078,3320.9,3320.2,1.4174]
[1737673791793,3.8099,3320.9,3320.2,1.4174]
[1737673792096,3.8099,3320.9,3320.6,0.60213]
[1737673792097,3.2078,3320.9,3320.6,0.60213]
[1737673796698,3.8099,3320.9,3320.2,1.4174]
[1737673796893,3.2078,3320.9,3320.1,0.00268658]
[1737673797095,0.34019761,3320.8,3320.2,0.60221]
[1737673797301,0.34019761,3320.8,3320.4,0.60217]
[1737673797799,3.2078,3320.9,3320.1,0.00268658]
[1737673798001,3.2078,3320.9,3320.6,0.60214]
[1737673799596,3.2078,3320.9,3320.5,0.60215]
[1737673800307,3.2078,3320.9,3320.3,3.2078]
[1737673800610,3.2078,3320.9,3320.6,0.60213]
[1737673801105,3.80989,3320.9,3320.3,3.2078]
[1737673801404,3.2078,3320.9,3320.6,0.60214]
[1737673802002,3.2078,3320.9,3320.8,0.60211]
[1737673802205,6.55622585,3320.9,3320.1,0.00268658]
[1737673802504,6.77075871,3320.4,3320.1,0.00268658]
[1737673802699,0.60222,3320.2,3320.1,0.00268658]
[1737673802904,1.0489325,3320.3,3320.1,0.00268658]
[1737673803108,0.60222,3320.2,3320.1,0.00268658]
[1737673803502,0.60222,3320.2,3320.1,0.00159704]
[1737673803702,1.0489325,3320.3,3320.1,0.00159704]
[1737673804208,1.0489325,3320.3,3320.1,0.60382704]
[1737673804506,0.60222,3320.2,3320.1,0.00159704]
[1737673805206,5.64975659,3320.2,3320.1,0.00159704]
[1737673805410,5.64975659,3320.2,3319.1,3.2078]
[1737673805411,0.60237,3319.4,3319.1,3.2078]
[1737673805901,0.60237,3319.4,3319.1,44.0078]
[1737673806107,3.2078,3319.6,3319.1,44.0078]
[1737673806403,0.7468,3319.7,3319.3,0.60237]
[1737673806608,0.75131998,3319.7,3319.3,0.60237]
[1737673806807,0.75131998,3319.7,3319.1,44.0078]
[1737673806808,4.56142998,3319.7,3319.2,0.60239]
[1737673807006,3.95911998,3319.7,3319.2,0.6024]
[1737673807196,4.56143998,3319.7,3319.2,0.6024]
[1737673807509,3.95911998,3319.7,3319.1,44.0078]
[1737673808211,0.75131998,3319.7,3319.3,0.60237]
[1737673808509,0.75131998,3319.7,3319.4,0.60235]
[1737673808698,0.00451998,3319.7,3319.1,44.0078]
[1737673808898,0.00451998,3319.7,3319.6,0.60233]
[1737673809401,0.00451998,3319.7,3319.5,0.60233]
[1737673809698,0.00451998,3319.7,3319.1,44.0078]
[1737673810005,0.00451998,3319.7,3319.6,3.81013]
[1737673810705,0.00451998,3319.7,3319.6,44.61013]
[1737673813019,3.2078,3320.5,3319.6,49.0078]
[1737673813207,3.2078,3320.5,3320.4,0.60218]
[1737673814210,0.00451998,3320.8,3320.2,3.2078]
[1737673814401,0.00451998,3320.8,3320.7,0.60213]
[1737673815913,0.00451998,3320.8,3320.2,3.2078]
[1737673816610,0.00451998,3320.8,3320.6,0.60213]
[1737673816809,0.60663998,3320.8,3320.6,0.60213]
[1737673817205,0.00451998,3320.8,3320.2,3.2078]
[1737673817405,0.00451998,3320.8,3320.3,0.6022]
[1737673817606,0.00451998,3320.8,3320.2,3.2078]
[1737673817607,2.96076871,3320.6,3320.2,3.2078]
[1737673817810,0.6022,3320.3,3320.2,3.2078]
[1737673818113,2.96076871,3320.6,3320.2,3.2078]
[1737673818513,0.72481998,3320.8,3320.7,0.60213]
[1737673819119,0.72481998,3320.8,3320.6,0.60214]
[1737673819320,1.32693998,3320.8,3320.4,0.60217]
[1737673819619,0.72481998,3320.8,3320.7,0.60213]
[1737673820816,0.60213,3320.7,3320.4,0.60218]
[1737673821413,3.80993,3320.7,3320.3,0.60219]
[1737673821604,3.2078,3320.7,3320.4,0.60218]
[1737673821912,5.50799338,3320.7,3319.8,3.2078]
[1737673822117,2.30019338,3320.4,3319.8,3.2078]
[1737673822318,3.81005,3320.1,3319.7,0.6023]
[1737673822509,0.6917,3320.0,3319.3,3.2078]
[1737673822711,1.4305,3320.0,3319.3,44.0078]
[1737673823017,1.4305,3320.0,3319.8,0.60228]
[1737673823209,1.4305,3320.0,3319.3,44.0078]
[1737673823414,1.4305,3320.0,3319.9,0.60227]
[1737673823725,3.2078,3320.1,3319.3,44.0078]
[1737673824017,3.2078,3320.1,3320.0,0.60225]
[1737673824713,6.17008378,3320.5,3320.2,0.60221]
[1737673825014,3.2078,3320.5,3320.2,0.60221]
[1737673825610,3.2078,3320.5,3319.5,1.50587]
[1737673825611,3.2078,3320.5,3320.1,0.60223]
[1737673826013,3.2078,3320.5,3319.8,3.2078]
[1737673826014,3.2078,3320.5,3320.4,0.60218]
[1737673826216,1.481,3320.7,3319.9,1.50569]
[1737673826217,1.481,3320.7,3320.6,0.60214]
[1737673827007,2.96228378,3320.9,3320.6,0.60214]
[1737673827206,2.96228378,3320.9,3320.7,0.60213]
[1737673827616,3.2078,3321.1,3320.7,0.60213]
[1737673834322,4.98531378,3321.3,3320.7,0.60213]
[1737673834624,0.60204,3321.2,3320.7,0.60213]
[1737673834814,4.38328378,3321.3,3320.7,0.60213]
[1737673834815,4.98531378,3321.3,3320.7,0.60213]
[1737673835526,4.38328378,3321.3,3320.7,0.60213]
[1737673836828,0.60205,3321.2,3320.7,0.60213]
[1737673837124,0.9419813,3321.2,3320.7,0.60213]
[1737673838025,0.3399313,3321.2,3320.7,0.60213]
[1737673839125,0.34012121,3321.2,3320.7,0.60213]
[1737673839323,0.94217121,3321.2,3320.7,0.60213]
[1737673839626,0.34012121,3321.2,3320.7,0.60213]
[1737673840524,0.94216121,3321.2,3320.7,0.60213]
[1737673840914,0.34012121,3321.2,3320.7,0.60213]
[1737673842021,3.2078,3321.5,3320.7,0.60213]
[1737673842227,3.2078,3321.9,3321.8,0.60193]
[1737673842420,2.96228378,3322.5,3322.4,0.60182]
[1737673842621,0.34002444,3322.5,3322.4,0.60182]
[1737673842821,1.04752444,3322.7,3322.6,0.60178]
[1737673843017,1.04752444,3322.7,3322.6,0.35802422]
[1737673843222,3.2078,3323.2,3322.7,0.60176]
[1737673843417,3.2078,3323.2,3322.5,3.2078]
[1737673843619,0.00451998,3323.3,3323.2,0.60167]
[1737673844927,0.60169,3323.2,3322.6,4.52077]
[1737673845124,3.81397998,3323.3,3322.8,0.60174]
[1737673845329,3.81397998,3323.3,3322.6,0.7112]
[1737673845524,3.81397998,3323.3,3322.7,0.60175]
[1737673845719,3.60727577,3323.2,3322.7,0.60175]
[1737673846332,3.00560577,3323.2,3322.6,0.7112]
[1737673846828,3.00560577,3323.2,3322.3,0.00451998]
[1737673846829,0.60181,3322.5,3322.3,0.00451998]
[1737673847029,2.29680577,3322.4,3322.3,0.00451998]
[1737673847226,2.99510577,3322.4,3322.3,0.00451998]
[1737673847427,3.59692577,3322.4,3322.3,0.00451998]
[1737673847726,2.99510577,3322.4,3322.3,0.00451998]
[1737673848130,0.6983,3322.4,3322.3,0.00451998]
[1737673849935,1.30012,3322.4,3322.3,0.00451998]
[1737673850535,4.25850542,3322.4,3322.3,0.00451998]
[1737673850727,4.25850542,3322.4,3321.1,0.6975]
[1737673850728,0.60195,3321.7,3321.3,3.2078]
[1737673851034,9.30600707,3322.4,3320.3,1.50547]
[1737673851035,0.60193,3321.8,3321.0,0.60207]
[1737673851334,0.6813,3321.6,3320.9,0.60207]
[1737673851535,0.60198,3321.5,3320.9,0.60207]
[1737673851934,0.60649291,3321.5,3320.9,0.60658291]
[1737673852428,0.60650291,3321.5,3320.9,0.60658291]
[1737673852634,0.00451291,3321.5,3320.9,0.00451291]
[1737673852822,0.00451291,3321.5,3321.0,0.60206]
[1737673854432,0.60201,3321.4,3320.9,0.00451291]
[1737673855133,3.21231291,3321.5,3320.9,0.00451291]
[1737673855327,0.00451291,3321.5,3320.9,0.00451291]
[1737673855526,0.00451291,3321.5,3321.4,0.602]
[1737673855929,0.00451291,3321.5,3321.4,41.402]
[1737673857236,3.21231291,3321.5,3320.9,0.00451291]
[1737673857435,0.60650291,3321.5,3321.1,3.2078]
[1737673858126,0.00451291,3321.5,3321.1,3.2078]
[1737673858532,0.60650291,3321.5,3321.1,3.2078]
[1737673858738,0.00451291,3321.5,3321.2,0.60202]
[1737673859339,0.60650291,3321.5,3321.1,3.80985]
[1737673859535,0.00451291,3321.5,3321.1,3.80985]
[1737673860043,0.00451291,3321.5,3321.1,3.2078]
[1737673860242,3.2078,3321.3,3320.9,0.00451291]
[1737673860454,0.60207,3321.0,3320.9,0.00451291]
[1737673860939,2.03049319,3321.0,3320.9,0.00451291]
[1737673861537,1.42842319,3321.0,3320.2,3.2078]
[1737673861737,6.16618542,3320.7,3320.2,3.2078]
[1737673861942,0.60214,3320.6,3320.2,3.2078]
[1737673862137,0.60217,3320.5,3320.2,3.2078]
[1737673862442,0.7424,3320.4,3320.2,3.2078]
[1737673863439,3.2078,3320.7,3320.6,0.60214]
[1737673864139,0.7017,3321.0,3320.3,0.7071]
[1737673864343,0.7017,3321.0,3320.6,0.60214]
[1737673865047,3.2078,3321.2,3320.3,0.7071]
[1737673865246,0.7339,3321.3,3320.6,3.2078]
[1737673865744,0.00451291,3321.5,3321.2,0.60203]
[1737673865948,0.00451291,3321.5,3320.7,1.50532]
[1737673866146,0.60650291,3321.5,3320.9,3.80987]
[1737673866348,0.00451291,3321.5,3320.5,3.2078]
[1737673866544,0.00451291,3321.5,3321.2,0.60202]
[1737673866851,0.60650291,3321.5,3321.0,0.60207]
[1737673867350,0.00451291,3321.5,3321.1,0.60205]
[1737673867552,0.00451291,3321.5,3320.5,44.0078]
[1737673867852,0.60207,3321.0,3320.5,3.80995]
[1737673868155,3.80994,3320.7,3320.2,0.60222]
[1737673868753,3.2078,3320.7,3320.3,0.60219]
[1737673868960,0.60215,3320.6,3320.1,1.34002]
[1737673869154,3.2078,3320.7,3320.1,0.7378]
[1737673869358,3.80994,3320.7,3320.2,0.60221]
[1737673869957,3.80994,3320.7,3320.1,0.7378]
[1737673869958,0.60215,3320.6,3320.1,0.60223]
[1737673870163,3.2078,3320.7,3320.0,3.21231291]
[1737673870463,0.60219,3320.4,3320.0,3.21231291]
[1737673870765,6.16618542,3320.7,3320.5,0.60215]
[1737673870766,3.2078,3320.7,3320.5,0.60215]
[1737673871059,3.2078,3320.7,3320.1,0.6719]
[1737673871262,3.2078,3320.7,3320.4,0.60217]
[1737673871763,3.2078,3320.7,3320.2,0.6022]
[1737673871963,3.80993,3320.7,3320.3,0.60219]
[1737673872262,0.60217,3320.5,3320.1,0.6719]
[1737673872458,6.16618542,3320.7,3320.0,3.21231291]
[1737673872659,0.60219,3320.4,3320.0,3.21231291]
[1737673873056,6.16618542,3320.7,3320.0,3.21231291]
[1737673873259,0.60219,3320.4,3320.0,3.21231291]
[1737673873662,0.60217,3320.5,3320.0,3.81456291]
[1737673873952,6.16618542,3320.7,3320.0,3.81456291]
[1737673873953,6.16618542,3320.7,3320.0,3.21231291]
[1737673874261,3.2078,3320.7,3320.0,3.21231291]
[1737673874962,3.80993,3320.7,3320.0,3.21231291]
[1737673875163,3.80993,3320.7,3320.3,0.60219]
[1737673875359,3.2078,3320.7,3320.4,0.60218]
[1737673875568,3.2078,3320.7,3320.1,0.6752]
[1737673875761,3.2078,3320.7,3320.4,0.60217]
[1737673876165,3.2078,3320.7,3320.5,0.60216]
[1737673876466,3.2078,3320.7,3320.4,0.60217]
[1737673877070,3.2078,3320.7,3320.5,0.60216]
[1737673878263,3.2078,3320.7,3320.1,0.6752]
[1737673878462,0.60214,3320.7,3320.2,0.60221]
[1737673878671,0.6022,3320.3,3320.0,3.21231291]
[1737673879364,0.94181432,3320.6,3320.0,3.21231291]
[1737673879573,0.33966432,3320.6,3320.0,3.21231291]
[1737673879764,1.4203,3320.9,3320.0,3.21231291]
[1737673879970,1.76005047,3320.9,3320.5,0.60216]
[1737673880170,2.36214047,3320.9,3320.5,0.60216]
[1737673880473,0.33975047,3320.8,3320.5,0.60216]
[1737673880768,0.33975047,3320.8,3320.4,0.60216]
[1737673880769,3.80991,3320.8,3320.4,0.60216]
[1737673881171,3.2078,3320.8,3320.4,0.60216]
[1737673881566,3.2078,3320.8,3320.5,0.60215]
[1737673881775,1.4203,3320.9,3320.5,0.60215]
[1737673881971,2.36228085,3320.9,3320.5,0.60215]
[1737673882172,0.60213,3320.7,3320.3,0.60219]
[1737673882770,3.54771704,3320.8,3320.1,0.6986]
[1737673882965,0.60212,3320.8,3320.1,0.6986]
[1737673883270,0.94206056,3320.8,3320.4,0.60217]
[1737673883676,2.0224,3320.9,3320.5,0.60216]
[1737673883875,3.54777507,3320.8,3320.5,0.60216]
[1737673884066,3.2078,3320.8,3320.5,0.60216]
[1737673884668,3.2078,3321.2,3320.8,0.60211]
[1737673884873,3.2078,3321.2,3320.4,3.2078]
[1737673884874,0.33993338,3321.1,3320.4,4.71322]
[1737673885069,3.80984,3321.2,3320.8,0.6021]
[1737673885374,2.90191456,3321.0,3320.6,0.60214]
[1737673885673,0.33993066,3320.9,3320.1,0.6986]
[1737673885870,2.90196456,3320.7,3320.3,0.60219]
[1737673886270,2.98043456,3320.7,3320.2,0.60222]
[1737673886468,0.34024984,3320.6,3320.4,0.60218]
[1737673886666,0.34023559,3320.6,3320.4,0.60218]
[1737673887272,1.02083559,3320.7,3320.2,0.60222]
[1737673887473,1.02083559,3320.7,3320.4,0.60216]
[1737673888775,1.02083559,3320.7,3320.1,0.6986]
[1737673888976,1.02083559,3320.7,3320.4,0.60216]
[1737673889375,0.60223,3320.1,3320.0,0.00451291]
[1737673889874,0.60225,3320.0,3319.4,0.60235]
[1737673890073,0.60228,3319.9,3319.4,0.60235]
[1737673890474,1.30327,3320.0,3319.1,42.2741]
[1737673890682,1.30327,3320.0,3319.5,0.60233]
[1737673890972,1.30327,3320.0,3319.4,0.60235]
[1737673890973,3.81007,3319.9,3319.4,0.60235]
[1737673891179,0.34023559,3319.8,3319.5,0.60234]
[1737673891570,0.34023559,3319.8,3319.4,0.60235]
[1737673891770,0.34023559,3319.8,3319.2,3.2078]
[1737673891971,3.2078,3319.9,3319.4,0.60234]
[1737673892172,3.2078,3319.9,3319.5,0.60233]
[1737673892372,3.2078,3319.9,3319.6,0.60232]
[1737673892873,0.34042043,3319.8,3319.6,0.60232]
[1737673893272,0.34035156,3319.8,3319.5,0.60234]
[1737673893576,3.2078,3319.9,3319.5,0.60234]
[1737673893976,3.2078,3319.9,3319.5,0.60233]
[1737673894275,5.50763456,3319.9,3319.3,0.60238]
[1737673894483,1.05629088,3319.8,3319.1,42.2741]
[1737673894782,0.60235,3319.5,3319.1,40.8]
[1737673895283,2.90216456,3319.6,3319.1,41.40241]
[1737673895470,2.29983456,3319.6,3318.8,3.2078]
[1737673895776,3.2078,3319.9,3319.7,0.60231]
[1737673895983,0.701,3320.0,3319.7,3.2078]
[1737673896280,6.22363456,3320.5,3320.0,0.60225]
[1737673896480,0.34014943,3320.4,3320.0,0.60225]
[1737673896873,0.94233943,3320.4,3319.9,0.60226]
[1737673897075,0.34014943,3320.4,3319.8,1.348]
[1737673897375,2.29983456,3320.2,3319.3,45.51375]
[1737673897578,2.29983456,3319.9,3319.6,0.60231]
[1737673897778,2.29983456,3319.9,3319.5,0.60233]
[1737673898177,2.29983456,3319.9,3319.4,0.60236]
[1737673898367,2.29983456,3319.9,3319.3,44.0078]
[1737673898573,0.7365,3320.0,3319.4,0.60236]
[1737673898776,0.00451291,3320.1,3320.0,0.60225]
[1737673899180,0.00451291,3320.1,3320.0,1.99385]
[1737673900878,3.03633456,3321.2,3320.0,6.3916]
[1737673901082,0.34007582,3321.1,3321.0,0.60207]
[1737673901282,0.34007582,3321.1,3320.4,0.60218]
[1737673901578,0.34007582,3321.1,3320.9,0.60208]
[1737673901780,3.2078,3321.3,3320.7,3.2078]
[1737673901983,4.6452,3322.3,3321.1,3.2078]
[1737673902280,4.6452,3322.3,3321.0,2.29983456]
[1737673902281,0.699,3322.3,3321.5,4.71272]
[1737673902482,0.00451291,3322.0,3321.6,0.6716]
[1737673902676,0.00451291,3322.0,3321.5,44.0078]
[1737673902881,0.00451291,3322.0,3321.1,3.8794]
[1737673903081,2.29983456,3321.5,3321.1,3.8794]
[1737673903284,2.29983456,3321.5,3321.4,0.602]
[1737673903480,2.29983456,3321.5,3321.2,40.8]
[1737673904084,3.21231291,3322.0,3321.1,3.2078]
[1737673904085,2.29983456,3321.8,3321.1,3.2078]
[1737673904286,2.29983456,3321.8,3321.5,0.60197]
[1737673904481,2.29983456,3321.8,3321.1,3.2078]
[1737673904677,2.29983456,3321.2,3320.7,0.00451291]
[1737673904985,2.29983456,3320.9,3320.7,0.00451291]
[1737673905283,2.90193456,3320.9,3320.7,0.00451291]
[1737673905479,2.29983456,3320.9,3320.7,0.00451291]
[1737673905686,1.451,3321.1,3320.9,0.60208]
[1737673906086,1.451,3321.1,3321.0,0.60207]
[1737673907282,2.96089577,3321.7,3320.7,3.21231291]
[1737673907483,3.2078,3321.9,3321.3,3.2078]
[1737673907691,0.00451291,3322.0,3320.9,3.2078]
[1737673907890,0.00451291,3322.0,3321.4,3.2078]
[1737673907891,1.04835165,3322.0,3321.4,3.2078]
[1737673908095,0.00451291,3322.0,3321.9,0.60191]
[1737673908593,0.00451291,3322.0,3320.9,3.2078]
[1737673908888,2.96089577,3321.6,3321.2,0.60203]
[1737673909093,0.7025,3321.5,3321.2,0.60203]
[1737673909287,0.7025,3321.5,3321.0,0.60207]
[1737673909494,0.7025,3321.5,3321.1,0.60205]
[1737673909889,1.0416906,3321.5,3320.9,3.2078]
[1737673910195,1.0416906,3321.5,3321.1,0.60205]
[1737673910496,3.67000868,3322.0,3320.9,3.2078]
[1737673910682,1.08906224,3321.9,3321.0,0.60207]
[1737673910997,1.04155564,3321.9,3321.5,0.60197]
[1737673911297,1.04148824,3321.9,3320.9,3.2078]
[1737673911489,1.04148824,3321.9,3321.5,0.60198]
[1737673911996,0.7025,3321.9,3321.5,0.60198]
[1737673912394,2.96540868,3322.0,3321.4,3.2078]
[1737673912597,2.96540868,3322.0,3321.9,0.60191]
[1737673912895,0.00451291,3322.0,3321.9,44.60971]
[1737673913286,0.00451291,3322.0,3321.9,40.8]
[1737673913490,0.00451291,3322.0,3321.6,1.33675]
[1737673913690,0.00451291,3322.0,3321.8,0.60191]
[1737673914095,0.00451291,3322.0,3321.7,0.60194]
[1737673914401,3.56280577,3321.9,3321.4,3.2078]
[1737673914591,2.96089577,3321.9,3321.4,3.2078]
[1737673914790,0.60193,3321.8,3321.3,0.60202]
[1737673915095,0.7054,3321.7,3321.0,3.8938]
[1737673915293,1.30736,3321.7,3321.1,0.60204]
[1737673915595,0.04751284,3321.6,3321.0,3.8938]
[1737673915898,0.94068855,3321.8,3321.3,0.60201]
[1737673916098,0.60196,3321.6,3321.1,0.60205]
[1737673916291,0.60196,3321.7,3321.1,0.60205]
[1737673916494,0.04751481,3321.6,3321.0,3.8938]
[1737673916690,0.04751481,3321.7,3321.3,0.602]
[1737673916898,1.64607855,3321.8,3321.3,0.602]
[1737673917091,0.7054,3321.8,3321.3,0.602]
[1737673917401,1.30733,3321.8,3321.3,0.602]
[1737673917586,1.30733,3321.8,3321.0,0.686]
[1737673917587,0.7054,3321.8,3321.0,0.686]
[1737673917791,3.21231291,3322.0,3321.7,0.60193]
[1737673917997,0.00451291,3322.0,3321.7,0.60193]
[1737673918195,0.00451291,3322.0,3321.9,0.60191]
[1737673919502,0.00451291,3322.0,3321.9,3.80971]
[1737673921192,0.00451291,3322.0,3321.9,0.60191]
[1737673921591,0.00451291,3322.0,3321.9,41.40191]
[1737673922601,0.00451291,3322.0,3321.9,0.60191]
[1737673923197,0.00451291,3322.0,3321.9,41.40191]
[1737673923606,3.2078,3323.4,3323.0,0.6017]
[1737673923802,0.60166,3323.3,3322.9,0.60173]
[1737673923999,0.60166,3323.3,3322.1,0.60187]
[1737673924000,0.60178,3322.7,3322.1,0.60187]
[1737673924302,2.96089577,3322.7,3322.0,3.80969]
[1737673924498,3.2078,3322.5,3322.0,0.60189]
[1737673924904,3.80961,3322.5,3322.0,0.60189]
[1737673925107,3.2078,3322.5,3321.9,0.00451291]
[1737673925308,2.96089577,3322.3,3322.0,0.60189]
[1737673925705,3.2078,3322.1,3321.9,0.00451291]
[1737673925905,0.60189,3322.0,3321.9,0.00451291]
[1737673926402,0.98846082,3322.0,3321.9,0.00451291]
[1737673926606,0.98846082,3322.0,3321.9,0.00271359]
[1737673927107,0.94095353,3322.0,3321.9,0.00271359]
[1737673927305,5.9884638,3322.0,3321.9,0.00271359]
[1737673927508,2.29817285,3321.3,3321.0,0.60206]
[1737673927702,2.29817285,3321.3,3320.7,0.676]
[1737673928010,2.29817285,3321.3,3320.7,41.476]
[1737673928209,3.2078,3321.6,3320.5,3.2078]
[1737673928210,2.29817285,3321.0,3320.5,3.2078]
[1737673928609,2.29817285,3321.0,3320.7,0.60212]
[1737673928812,3.2078,3320.8,3320.5,40.8]
[1737673929310,2.29817285,3320.7,3320.4,0.00451291]
[1737673929507,2.29817285,3320.7,3320.4,0.60669291]
[1737673929816,2.29817285,3320.7,3320.4,0.00451291]
[1737673930512,3.02327285,3320.7,3320.4,0.00451291]
[1737673931810,0.7251,3320.7,3320.4,0.60669291]
[1737673932011,1.06488712,3320.7,3320.4,0.00451291]
[1737673932311,3.56383969,3320.5,3320.4,0.00451291]
[1737673932702,3.90357674,3320.5,3320.4,0.00451291]
[1737673932908,3.95110872,3320.5,3320.4,0.00451291]
[1737673933121,0.6023,3319.8,3319.1,3.2078]
[1737673933308,2.96167969,3319.3,3319.1,3.2078]
[1737673933610,2.96167969,3319.3,3318.6,3.2078]
[1737673933611,0.60241,3319.2,3318.6,3.2078]
[1737673933813,2.96167969,3319.3,3318.6,3.8103]
[1737673934114,0.04755234,3319.2,3318.6,3.2078]
[1737673934317,3.5685826,3319.3,3318.6,3.2078]
[1737673934510,0.04755239,3319.2,3318.6,3.81031]
[1737673934710,0.04755239,3319.2,3318.6,0.60251]
[1737673934909,2.9661926,3319.3,3318.6,3.2078]
[1737673935107,3.5685726,3319.3,3318.6,3.2078]
[1737673935312,2.9661926,3319.3,3318.6,3.81029]
[1737673935512,3.5685826,3319.3,3318.6,3.2078]
[1737673935810,0.60241,3319.2,3318.6,3.2078]
[1737673936117,0.6025,3318.7,3318.2,3.2078]
[1737673936514,1.4297,3318.8,3318.2,3.2078]
[1737673936718,1.4297,3318.8,3317.7,0.6748]
[1737673936719,3.8103,3318.7,3318.0,0.60261]
[1737673937019,3.8103,3318.7,3318.1,40.8]
[1737673937213,3.81029,3318.7,3318.0,0.60261]
[1737673937512,3.2078,3318.7,3317.7,0.6748]
[1737673937718,3.2078,3318.7,3318.2,0.60256]
[1737673938519,3.2078,3318.7,3318.3,0.60256]
[1737673938814,2.9661926,3319.3,3318.4,3.2078]
[1737673939427,3.5685726,3319.3,3318.6,0.6025]
[1737673939615,2.9661926,3319.3,3318.7,0.60248]
[1737673939816,2.9661926,3319.3,3318.7,0.60249]
[1737673940018,2.9661926,3319.3,3318.5,0.7111]
[1737673940220,3.5685726,3319.3,3318.6,0.6025]
[1737673940416,2.9661926,3319.3,3318.7,0.60249]
[1737673940823,2.9661926,3319.3,3318.5,0.7111]
[1737673941020,2.9661926,3319.3,3318.8,0.60247]
[1737673941214,2.9661926,3319.3,3318.6,0.7016]
[1737673941414,2.9661926,3319.3,3318.9,0.60245]
[1737673941620,0.60242,3319.1,3318.6,0.7016]
[1737673941813,3.81022,3319.1,3318.6,0.7016]
[1737673942519,3.2078,3319.1,3318.5,0.7111]
[1737673942817,3.2078,3319.1,3318.5,1.31361]
[1737673943024,0.00451291,3319.3,3319.1,0.60241]
[1737673943219,0.00451291,3319.3,3319.2,0.6024]
[1737673943420,0.00451291,3319.3,3319.2,41.4024]
[1737673945327,0.00451291,3319.3,3319.0,0.7333]
[1737673946021,0.00451291,3319.3,3319.0,1.33573]
[1737673946224,0.00451291,3319.3,3319.0,0.7333]
[1737673946724,0.00451291,3319.3,3319.2,0.6024]
[1737673947624,0.00451291,3319.3,3319.0,0.7333]
[1737673947920,0.00451291,3319.3,3319.2,0.6024]
[1737673948125,0.910747,3320.3,3319.2,0.6024]
[1737673948126,2.96167969,3320.5,3320.3,0.60219]
[1737673948327,1.50489,3321.7,3320.0,3.2078]
[1737673948328,4.39117969,3320.9,3320.0,3.2078]
[1737673948514,4.39117969,3320.9,3320.4,0.60217]
[1737673948714,2.96167969,3321.3,3320.5,40.8]
[1737673949221,2.1657,3321.6,3320.5,40.8]
[1737673949222,0.7367,3321.6,3320.8,3.2078]
[1737673949423,2.96167969,3321.7,3321.2,3.2078]
[1737673949629,0.00451977,3321.5,3321.2,3.2078]
[1737673950126,0.00451977,3321.5,3320.6,3.21231977]
[1737673950426,0.00451977,3321.5,3321.1,0.60205]
[1737673950621,0.00451977,3321.5,3321.2,0.60203]
[1737673951926,0.00451977,3321.5,3321.4,0.602]
[1737673953321,0.00451977,3321.5,3321.4,3.8098]
[1737673953734,0.7367,3322.4,3321.4,3.2078]
[1737673954027,2.96167969,3322.7,3322.3,0.60184]
[1737673954223,2.96167969,3322.7,3322.4,0.60182]
[1737673954435,2.96167969,3322.7,3322.0,0.60189]
[1737673954618,2.96167969,3322.3,3321.4,3.2078]
[1737673954821,0.00451977,3322.2,3321.9,3.2078]
[1737673955029,0.00451977,3322.2,3322.1,0.60187]
[1737673956529,0.00451977,3322.2,3322.0,0.6807]
[1737673956732,0.00451977,3322.2,3322.1,0.60187]
[1737673957726,0.00451977,3322.2,3321.9,44.0078]
[1737673957727,0.00451977,3322.2,3321.9,3.2078]
[1737673958135,0.00451977,3322.2,3322.0,0.60188]
[1737673958432,0.00451977,3322.2,3321.9,3.80969]
[1737673959032,0.00451977,3322.2,3321.9,3.2078]
[1737673959221,0.00451977,3322.2,3322.1,0.60187]
[1737673959628,2.96167969,3323.5,3322.1,5.0]
[1737673959825,2.96167969,3323.5,3323.1,3.2078]
[1737673960329,0.709,3323.8,3323.1,3.2078]
[1737673960530,0.709,3323.8,3323.2,41.40166]
[1737673960730,0.709,3323.8,3323.2,41.40167]
[1737673961028,0.71351977,3323.8,3323.2,41.40618977]
[1737673961233,0.00451977,3323.8,3323.2,40.80451977]
[1737673961433,0.00451977,3323.8,3323.5,3.2078]
[1737673961827,0.00451977,3323.8,3323.5,3.80941]
[1737673962228,0.00451977,3323.8,3323.2,40.80451977]
[1737673962534,0.60165,3323.4,3323.2,0.00451977]
[1737673962924,3.80946,3323.3,3323.2,0.00451977]
[1737673964129,1.4014,3323.4,3323.2,0.00451977]
[1737673964334,2.00305,3323.4,3323.2,0.00451977]
[1737673964534,0.00451977,3323.8,3323.2,0.00451977]
[1737673964729,0.00451977,3323.8,3323.4,0.60163]
[1737673964930,0.00451977,3323.8,3323.6,0.6016]
[1737673965439,0.00451977,3323.8,3323.4,0.60162]
[1737673966036,0.60608977,3323.8,3323.3,0.60165]
[1737673967030,0.00451977,3323.8,3323.2,0.00451977]
[1737673967232,0.60165,3323.4,3323.2,0.00451977]
[1737673967435,2.96167969,3323.5,3323.2,0.00451977]
[1737673967436,2.01466,3323.3,3323.2,0.00451977]
[1737673967738,1.413,3323.3,3323.2,0.00451977]
[1737673969837,0.00451977,3323.8,3323.2,0.00451977]
[1737673970039,0.00451977,3323.8,3323.7,0.60158]
[1737673970636,3.2078,3324.8,3323.7,46.40158]
[1737673970837,4.36167969,3325.1,3324.3,3.2078]
[1737673971137,0.60145,3324.5,3323.9,0.60154]
[1737673971343,0.7306,3324.4,3324.1,0.60151]
[1737673971539,1.33207,3324.4,3323.9,0.60154]
[1737673971840,1.33207,3324.4,3323.7,40.8]
[1737673971841,3.56315969,3324.3,3323.8,3.80935]
[1737673972041,0.6675,3324.2,3323.8,3.80935]
[1737673972240,1.269,3324.2,3323.8,3.2078]
[1737673972635,0.6675,3324.2,3323.8,3.80936]
[1737673972837,0.6675,3324.2,3323.8,3.2078]
[1737673973037,0.6675,3324.2,3323.8,3.80936]
[1737673973334,0.6675,3324.2,3323.8,3.2078]
[1737673973734,0.6675,3324.2,3323.8,3.80936]
[1737673974146,0.6675,3324.2,3324.1,0.60151]
[1737673974343,0.7306,3324.4,3323.8,3.2078]
[1737673974645,3.2078,3324.5,3324.2,0.60149]
[1737673974846,3.2078,3324.5,3323.8,3.2078]